[Event "44th Chess Olympiad Women 2022"]
[Site "Chennai"]
[Date "2022.07.29"]
[Round "1.4"]
[White "Ahmad Murad, Fatema Alzahraa."]
[Black "Kiolbasa, Oliwia"]
[Result "0-1"]
[WhiteElo "1791"]
[BlackElo "2376"]
[Annotator "ChessBase"]
[PlyCount "54"]
[EventDate "2022.??.??"]
[TimeControl "60"]

1. d4 {[%emt 0:00:13]} d5 {[%emt 0:00:10]} 2. c4 {[%emt 0:00:15]} e6 {[%emt 0:
00:00]} 3. Nc3 {[%emt 0:00:38]} Nf6 {[%emt 0:00:11]} 4. Bg5 {[%emt 0:01:21]}
Be7 {[%emt 0:02:07]} 5. e3 {[%emt 0:01:05]} Nbd7 {[%emt 0:02:08]} 6. Nf3 {
[%emt 0:02:22]} h6 {[%emt 0:00:43]} 7. Bh4 {[%emt 0:00:22]} O-O {[%emt 0:01:11]
} 8. Be2 {[%emt 0:01:34]} c5 {[%emt 0:04:35]} 9. O-O {[%emt 0:07:19]} Ne4 {
[%emt 0:11:17]} 10. Bxe7 {[%emt 0:03:31]} Qxe7 {[%emt 0:00:14]} 11. cxd5 {
[%emt 0:01:41]} Nxc3 {[%emt 0:00:23]} 12. bxc3 {[%emt 0:01:23]} exd5 {[%emt 0:
00:00]} 13. dxc5 {[%emt 0:02:30]} Nxc5 {[%emt 0:03:04]} 14. Qd4 {[%emt 0:08:21]
} Be6 {[%emt 0:03:09]} 15. Rab1 {[%emt 0:02:40]} Rac8 {[%emt 0:00:54]} 16. Rfc1
{[%emt 0:04:55]} Rfd8 {[%emt 0:04:55]} 17. Qb4 {[%emt 0:04:02]} Bf5 {[%emt 0:
00:00]} 18. Rb2 {[%emt 0:04:20]} Qf6 {[%emt 0:06:59]} 19. Nd4 {[%emt 0:12:43]}
Bd3 {[%emt 0:04:19]} 20. Nb3 {[%emt 0:11:11]} Nxb3 {[%emt 0:07:13]} 21. axb3 {
[%emt 0:01:07]} Be4 {[%emt 0:08:39]} 22. Rd2 {[%emt 0:11:56]} Rc6 {[%emt 0:00:
00]} 23. Bd3 {[%emt 0:05:42]} Rb6 {[%emt 0:09:51]} 24. Qa4 {[%emt 0:01:44]} a6
{[%emt 0:05:58]} 25. Rcd1 {[%emt 0:04:09]} Bxd3 {[%emt 0:05:12]} 26. Rxd3 {
[%emt 0:00:08]} Rc8 {[%emt 0:00:27]} 27. Rxd5 {[%emt 0:06:17]} Qxc3 {[%emt 0:
00:00]} 0-1

[Event "44th Chess Olympiad Women 2022"]
[Site "Chennai"]
[Date "2022.07.29"]
[Round "1.4"]
[White "Khalil, Manar"]
[Black "Rudzinska, Michalina"]
[Result "0-1"]
[WhiteElo "1831"]
[BlackElo "2315"]
[Annotator "ChessBase"]
[PlyCount "66"]
[EventDate "2022.??.??"]
[TimeControl "60"]

1. e4 {[%emt 0:00:09]} c6 {[%emt 0:00:10]} 2. d4 {[%emt 0:00:42]} d5 {[%emt 0:
00:00]} 3. exd5 {[%emt 0:00:55]} cxd5 {[%emt 0:00:09]} 4. Bd3 {[%emt 0:01:01]}
Nf6 {[%emt 0:00:12]} 5. h3 {[%emt 0:02:36]} Nc6 {[%emt 0:00:22]} 6. Nf3 {
[%emt 0:00:18]} g6 {[%emt 0:02:33]} 7. O-O {[%emt 0:01:56]} Bf5 {[%emt 0:00:55]
} 8. c3 {[%emt 0:02:17]} Qc7 {[%emt 0:01:55]} 9. Re1 {[%emt 0:02:28]} e6 {
[%emt 0:01:14]} 10. Na3 {[%emt 0:11:12]} a6 {[%emt 0:04:57]} 11. Nc2 {[%emt 0:
00:00]} Bd6 {[%emt 0:06:45]} 12. Bh6 {[%emt 0:09:25]} Bxd3 {[%emt 0:07:20]} 13.
Qxd3 {[%emt 0:02:03]} Nh5 {[%emt 0:01:09]} 14. Ne3 {[%emt 0:06:24]} Ne7 {
[%emt 0:00:59]} 15. Ng4 {[%emt 0:09:49]} Nf5 {[%emt 0:10:14]} 16. Nfe5 {
[%emt 0:07:12]} f6 {[%emt 0:04:52]} 17. Nf3 {[%emt 0:05:13]} Nxh6 {[%emt 0:00:
00]} 18. Nxh6 {[%emt 0:04:45]} Nf4 {[%emt 0:00:58]} 19. Qd2 {[%emt 0:01:08]}
O-O-O {[%emt 0:02:04]} 20. Ng4 {[%emt 0:06:58]} h5 {[%emt 0:01:41]} 21. Nge5 {
[%emt 0:02:18]} g5 {[%emt 0:03:21]} 22. Nd3 {[%emt 0:04:07]} g4 {[%emt 0:01:28]
} 23. Nh4 {[%emt 0:02:26]} gxh3 {[%emt 0:03:33]} 24. g3 {[%emt 0:00:49]} Rdg8 {
[%emt 0:03:07]} 25. Kh2 {[%emt 0:01:51]} Ng2 {[%emt 0:02:52]} 26. Nxg2 {
[%emt 0:03:30]} hxg2 {[%emt 0:00:10]} 27. Qe3 {[%emt 0:05:08]} h4 {[%emt 0:00:
00]} 28. Kxg2 {[%emt 0:00:22]} hxg3 {[%emt 0:03:39]} 29. Qxe6+ {[%emt 0:01:25]}
Kb8 {[%emt 0:00:10]} 30. Kf3 {[%emt 0:00:22]} gxf2 {[%emt 0:01:45]} 31. Nxf2 {
[%emt 0:01:32]} Bg3 {[%emt 0:00:25]} 32. Qf5 {[%emt 0:01:17]} Bxf2 {[%emt 0:00:
00]} 33. Kxf2 {[%emt 0:00:35]} Qh2+ {[%emt 0:00:13]} 0-1

[Event "44th Chess Olympiad Women 2022"]
[Site "Chennai"]
[Date "2022.07.29"]
[Round "1.4"]
[White "Malicka, Maria"]
[Black "Mahmoud, Roula"]
[Result "1-0"]
[WhiteElo "2393"]
[BlackElo "1765"]
[Annotator "TA"]
[PlyCount "139"]
[EventDate "2022.??.??"]
[TimeControl "60"]

{[%evp 14,139,47,43,117,77,74,71,76,71,81,66,86,92,93,78,93,46,129,117,171,158,
226,239,230,230,231,208,185,133,111,73,75,71,192,93,104,0,0,0,0,0,7,-6,83,52,
167,165,191,126,127,124,168,180,235,192,198,180,170,168,164,154,159,139,227,
170,255,222,922,891,795,797,922,922,922,811,708,695,1089,1086,12846,12844,
12847,12847,12849,12847,12849,12848,12849,12849,12850,12850,12850,27999,27999,
27999,27999,27999,27999,27999,27999,27999,27999,27999,27999,27999,27999,27999,
27999,27999,27992,27992,27993,27993,27994,27994,27995,27994,27996,27996,27997,
27997,27998,27998,27999,27998,27999,27999]} 1. e4 {[%emt 0:00:04]} c5 {[%emt 0:
00:00]} 2. Nf3 {[%emt 0:00:03]} e6 {[%emt 0:00:02]} 3. d4 {[%emt 0:00:06]} cxd4
{[%emt 0:00:04]} 4. Nxd4 {[%emt 0:00:04]} Nf6 {[%emt 0:00:06]} 5. Nc3 {[%emt 0:
00:00]} d6 {[%emt 0:00:21]} 6. g4 {[%emt 0:00:07]} h6 {[%emt 0:01:59]} 7. Rg1 {
[%emt 0:00:17]} Be7 {[%emt 0:01:45]} 8. h4 {[%emt 0:05:21]} Nh7 {[%emt 0:15:58]
Against g5. B81: Sicilian Scheveningen: Keres Attack.} ({Black should play} 
8... d5 $14) 9. Nf3 {[%emt 0:05:27] White is more active.} (9. Bb5+ $6 Bd7 $11)
9... Nc6 {[%emt 0:06:57]} 10. g5 {[%emt 0:05:14]} hxg5 {[%emt 0:07:16] White
is better.} 11. hxg5 {[%emt 0:00:07]} (11. Nxg5 $6 Nf6 $11) 11... Nf8 {[%emt 0:
00:00]} 12. Be3 {[%emt 0:01:08] [#]} Bd7 $146 {[%emt 0:03:54]} ({Predecessor:} 
12... a6 13. Qd2 b5 14. O-O-O Bb7 15. Nd4 Qc7 16. f4 Na5 17. a3 Nc4 18. Bxc4
Qxc4 {1-0 (53) Karttunen,M (2477)-Atlas,V (2440) Budva 2019}) 13. Qe2 {[%emt 0:
00:00]} Rc8 {[%emt 0:01:22]} 14. O-O-O {[%emt 0:06:35]} Qa5 {[%emt 0:05:22]}
15. a3 {[%emt 0:06:23] Prevents Nb4.} (15. Kb1 $16) 15... a6 {[%emt 0:01:27]} (
15... Ne5 $14) 16. Nd2 $1 $16 {[%emt 0:07:12] Black must now prevent Nc4.} b5 {
[%emt 0:04:48] Against Nc4} (16... Ne5 $16) 17. f4 $18 {[%emt 0:04:57]} b4 {
[%emt 0:03:14]} (17... Ng6 $16 {was necessary.}) 18. Nc4 {[%emt 0:02:54]} Qc7 {
[%emt 0:01:38]} 19. axb4 {[%emt 0:02:38]} Nxb4 {[%emt 0:00:07]} 20. Bd4 {
[%emt 0:08:13]} Ng6 {[%emt 0:13:02]} 21. Qd2 {[%emt 0:13:07]} (21. Bxg7 $18
Nxf4 22. Qf2) 21... d5 {[%emt 0:05:05]} 22. exd5 {[%emt 0:03:20]} (22. Bxg7 $6
dxc4 23. Bxh8 Nxh8 $11) 22... exd5 {[%emt 0:01:22]} 23. Nb6 {[%emt 0:03:15]} (
23. Bxg7 Rh7 24. Bf6 (24. Be5 Nxe5 25. Nxd5 Nxd5 $11) 24... dxc4 $15) 23...
Nxf4 {[%emt 0:06:14] [#]} 24. Nxc8 {[%emt 0:02:20]} (24. Re1 $1 $18 {is more
deadly.} Ne6 25. g6 (25. Nxc8 Bxc8 26. g6 f6 $16) (25. Nbxd5 Qa5 $15)) 24...
Bxc8 $16 {[%emt 0:00:06] [#]} 25. Qe3 {[%emt 0:07:29]} (25. Bxg7 Rh2 26. Qxh2 (
26. Bb5+ $2 axb5 27. Nxb5 Nfd3+ 28. Kb1 Qa5 $19) 26... Nfd3+ 27. Bxd3 Qxh2 $14)
(25. Re1 $1 $16 {Strongly threatening Be5.} Rh2 26. Bg2 (26. Qxh2 Nfd3+ 27.
Bxd3 Qxh2 $11) (26. Rxe7+ Kxe7 27. Qe3+ Kd7 $11) 26... Nxg2 27. Rxg2 Rxg2 28.
Qxg2) 25... Rh2 $11 {[%emt 0:06:57]} 26. Rd2 {[%emt 0:01:49]} (26. Bxg7 $2
Rxc2+ 27. Kb1 Bf5 $19) 26... Rxd2 {[%emt 0:00:14]} 27. Kxd2 {[%emt 0:02:39]
Be5 is the strong threat. Really sharp!} ({Much worse is} 27. Qxd2 Bf5 28. Qe3
(28. Bxg7 Ne6 $17) 28... Ne6 $17) 27... Ne6 $1 {[%emt 0:01:48] Pair of Knights!
} 28. g6 {[%emt 0:03:18]} Qh2+ {[%emt 0:04:22]} (28... f5 $11 {remains equal.})
29. Be2 {[%emt 0:04:05]} Nc6 {[%emt 0:02:16] Prevents Be5.} (29... fxg6 $14 30.
Be5 (30. Rxg6 Nxd4 31. Qxd4 Bf5 $11) 30... Qh4) 30. gxf7+ $18 {[%emt 0:00:20]}
Kxf7 {[%emt 0:00:18]} 31. Qf2+ {[%emt 0:00:36]} ({Better is} 31. Qf3+ $18 Kg8
32. Bf2) 31... Qxf2 $16 {[%emt 0:00:38]} 32. Bxf2 {[%emt 0:00:01]} Bg5+ {
[%emt 0:00:38]} 33. Kd1 {[%emt 0:00:18]} Nb4 {[%emt 0:01:34]} (33... Ne7 $142
34. Bg4 Bf6) 34. Bf3 {[%emt 0:01:19]} Bf6 {[%emt 0:00:56]} 35. Nxd5 {[%emt 0:
00:00]} Nxd5 {[%emt 0:01:01]} 36. Bxd5 {[%emt 0:00:02]} Bxb2 {[%emt 0:00:12]}
37. c4 {[%emt 0:01:07]} Be5 {[%emt 0:01:11]} 38. Bg3 {[%emt 0:00:52]} Bf6 {
[%emt 0:00:51]} (38... Bxg3 $16 39. Rxg3 Kf6) 39. Kc2 {[%emt 0:00:42]} Bd7 {
[%emt 0:00:33]} (39... Ke7 $142 40. Re1 Bd4) 40. Re1 {[%emt 0:00:33]} Ba4+ $2 {
[%emt 0:00:15]} (40... Be7 41. Ra1 Bc8) 41. Kd3 $18 {[%emt 0:30:39]} Bd7 {
[%emt 0:30:23]} 42. c5 {[%emt 0:00:00] aiming for c6.} Bb5+ {[%emt 0:00:00]}
43. Kc2 {[%emt 0:00:00]} Bd7 {[%emt 0:00:00]} 44. c6 {[%emt 0:00:00]} Bxc6 {
[%emt 0:00:00]} 45. Bxe6+ {[%emt 0:00:00]} ({Not} 45. Bxc6 Nd4+ 46. Kd3 Nxc6
$16) 45... Kg6 {[%emt 0:00:00]} 46. Be5 {[%emt 0:00:00]} Bb5 {[%emt 0:00:00]}
47. Rg1+ {[%emt 0:00:00]} Kh6 {[%emt 0:00:00]} 48. Bxf6 {[%emt 0:00:00]} gxf6 {
[%emt 0:00:00]} 49. Bf5 {[%emt 0:00:00]} Kh5 {[%emt 0:00:00]} 50. Bd3 {[%emt 0:
00:00]} Ba4+ {[%emt 0:00:00]} 51. Kd2 {[%emt 0:00:00]} a5 {[%emt 0:00:00]} 52.
Ra1 {[%emt 0:00:00]} Bd7 {[%emt 0:00:00]} 53. Rxa5+ {[%emt 0:00:00]} Kg4 {
[%emt 0:00:00] White mates.} 54. Ke3 {[%emt 0:00:00]} f5 {[%emt 0:00:00]} 55.
Rd5 {[%emt 0:00:00]} Bc8 {[%emt 0:00:00]} 56. Rd4+ {[%emt 0:00:00]} Kg5 {
[%emt 0:00:00]} 57. Rf4 {[%emt 0:00:00]} Bd7 {[%emt 0:00:00]} 58. Rf2 {[%emt 0:
00:00]} Bc8 {[%emt 0:00:00]} 59. Rg2+ {[%emt 0:00:00]} Kf6 {[%emt 0:00:00]} 60.
Kf4 {[%emt 0:00:00]} Bd7 {[%emt 0:00:00]} 61. Rg5 {[%emt 0:00:00]} Bc8 {
[%emt 0:00:00]} 62. Bxf5 {[%emt 0:00:00]} Bb7 {[%emt 0:00:00]} 63. Rg6+ {
[%emt 0:00:00]} Kf7 {[%emt 0:00:00]} 64. Ke5 {[%emt 0:00:00]} Bf3 {[%emt 0:00:
00]} 65. Ra6 {[%emt 0:00:00]} Be2 {[%emt 0:00:00]} 66. Ra7+ {[%emt 0:00:00]}
Kf8 {[%emt 0:00:00]} 67. Kf6 {[%emt 0:00:00][%cal Ra7a8]} Bf3 {[%emt 0:00:00]}
68. Rc7 {[%emt 0:00:00][%cal Rc7c8]} Bh5 {[%emt 0:00:00]} 69. Rc8+ {[%emt 0:00:
00]} Be8 {[%emt 0:00:00]} 70. Rb8 {[%emt 0:00:00] Weighted Error Value:
White=0.24 (precise) /Black=0.39} 1-0

[Event "44th Chess Olympiad Women 2022"]
[Site "Chennai"]
[Date "2022.07.29"]
[Round "1.5"]
[White "Berezovska, Svetlana"]
[Black "Savina, Anastasia"]
[Result "0-1"]
[WhiteElo "1781"]
[BlackElo "2377"]
[Annotator "TA"]
[PlyCount "86"]
[EventDate "2022.??.??"]
[TimeControl "60"]

{[%evp 12,86,33,22,22,14,22,10,9,-2,29,29,29,29,29,31,41,33,43,41,55,0,0,0,0,0,
0,0,0,0,0,0,0,-10,-10,-10,-2,-12,-15,-16,0,-12,0,-10,0,-38,-40,-41,-42,-42,-42,
-2341,-2486,-29973,-29970,-29978,-29979,-29977,-29977,-29978,-29979,-29982,
-29983,-29985,-29986,-29990,-29991,-29991,-29992,-29992,-29993,-29993,-29991,
-29991,-29992,-29992,-29986]} 1. e4 {[%emt 0:00:04]} c5 {[%emt 0:00:13]} 2. Nf3
{[%emt 0:00:25][%cal Yg1f3,Yf3d4,Yd4b5]} Nc6 {[%emt 0:00:39]} 3. d4 {[%emt 0:
00:11]} cxd4 {[%emt 0:00:16]} 4. Nxd4 {[%emt 0:00:05]} e5 {[%emt 0:00:00]} 5.
Nb5 {[%emt 0:00:23]} d6 {[%emt 0:00:27]} 6. c4 {[%emt 0:07:00]} Be7 {[%emt 0:
01:17] 6...Be6 is more fashionable.} 7. Bd3 {[%emt 0:02:07]} a6 {[%emt 0:03:52]
B32: Sicilian: Löwenthal and Kalashnikov Variations.} 8. N5c3 {[%emt 0:00:17]}
Bg5 {[%emt 0:00:45]} 9. Nd2 {[%emt 0:03:41]} Nf6 {[%emt 0:00:00] The position
is equal.} 10. Nd5 {[%emt 0:06:27] [#]} Nxd5 $146 {[%emt 0:00:00]} ({
Predecessor:} 10... O-O 11. O-O Be6 12. a3 Rc8 13. b4 Bxd5 14. exd5 Nd4 15. Bb2
Bxd2 16. Bxd4 Bf4 {0-1 (43) Rudolf,H (2308)-Sveshnikov,E (2541) Nova Gorica
2000}) 11. cxd5 {[%emt 0:00:32]} Nd4 {[%emt 0:02:32]} 12. O-O {[%emt 0:00:00]}
O-O {[%emt 0:11:17]} 13. Nb3 {[%emt 0:09:05]} Bxc1 {[%emt 0:14:51]} 14. Rxc1 {
[%emt 0:00:19]} Nxb3 {[%emt 0:00:16]} 15. Qxb3 {[%emt 0:00:23]} b5 {[%emt 0:09:
19]} 16. Rc6 {[%emt 0:22:18]} (16. Qb4 $14) 16... Bd7 $11 {[%emt 0:00:00]} 17.
Rc3 {[%emt 0:02:14]} Qa5 {[%emt 0:03:32]} 18. a3 {[%emt 0:02:19] Prevents b4.}
Rfc8 {[%emt 0:04:55]} 19. Rfc1 {[%emt 0:00:50]} g6 {[%emt 0:00:00]} 20. Rxc8+ {
[%emt 0:04:51]} Rxc8 {[%emt 0:00:51]} 21. Rxc8+ {[%emt 0:01:03]} Bxc8 {[%emt 0:
00:04]} 22. Qc3 {[%emt 0:00:15] Prevents Qe1+.} Qxc3 {[%emt 0:00:00]} 23. bxc3
{[%emt 0:00:04] Endgame KB-KB} Kf8 {[%emt 0:01:07]} 24. Kf1 {[%emt 0:01:56]}
Ke7 {[%emt 0:00:43]} 25. Ke2 {[%emt 0:01:25]} Kd8 {[%emt 0:00:59]} 26. Ke3 {
[%emt 0:06:48]} Kc7 {[%emt 0:01:59]} 27. f4 {[%emt 0:00:00]} Kb6 {[%emt 0:09:
03]} 28. h3 {[%emt 0:08:14]} f5 {[%emt 0:05:49]} 29. fxe5 {[%emt 0:09:21]} dxe5
{[%emt 0:00:31]} 30. exf5 {[%emt 0:01:29]} Bxf5 {[%emt 0:03:26]} 31. Bxf5 {
[%emt 0:00:34] [#] This costs White the game.} (31. c4 $15 bxc4 32. Bxc4) 31...
gxf5 $15 {[%emt 0:00:01] KP-KP} 32. g4 {[%emt 0:00:19]} fxg4 {[%emt 0:01:07]
Black mates.} 33. hxg4 {[%emt 0:00:06]} Kc5 {[%emt 0:00:08]} 34. Ke4 {[%emt 0:
00:46]} Kd6 {[%emt 0:00:06]} 35. g5 {[%emt 0:02:27]} a5 {[%emt 0:00:06]} 36.
Kf5 {[%emt 0:01:23]} Kxd5 {[%emt 0:00:00]} 37. Kf6 {[%emt 0:00:08]} e4 {
[%emt 0:00:25]} 38. Kg7 {[%emt 0:00:08]} e3 {[%emt 0:00:10]} 39. Kxh7 {[%emt 0:
00:01]} e2 {[%emt 0:00:07]} 40. g6 {[%emt 0:00:00]} e1=Q {[%emt 0:00:06]} 41.
g7 {[%emt 0:30:02]} Qh4+ {[%emt 0:30:22]} 42. Kg6 {[%emt 0:00:25]} Qg4+ {
[%emt 0:00:06]} 43. Kf7 {[%emt 0:00:07]} Kc4 {[%emt 0:00:14] Weighted Error
Value: White=0.42/Black=0.03 (flawless)} 0-1

[Event "44th Chess Olympiad Women 2022"]
[Site "Chennai"]
[Date "2022.07.29"]
[Round "1.5"]
[White "Dubois, Martine"]
[Black "Guichard, Pauline"]
[Result "0-1"]
[WhiteElo "1782"]
[BlackElo "2379"]
[Annotator "ChessBase"]
[PlyCount "76"]
[EventDate "2022.??.??"]
[TimeControl "60"]

1. e4 {[%emt 0:00:02]} e5 {[%emt 0:00:05]} 2. Bc4 {[%emt 0:00:07]} Nf6 {
[%emt 0:00:32]} 3. d3 {[%emt 0:00:06]} Nc6 {[%emt 0:01:41]} 4. Nf3 {[%emt 0:00:
00]} h6 {[%emt 0:01:16]} 5. c3 {[%emt 0:02:16]} d6 {[%emt 0:00:30]} 6. O-O {
[%emt 0:15:37]} g5 {[%emt 0:03:23]} 7. d4 {[%emt 0:04:46]} Bg4 {[%emt 0:06:24]}
8. d5 {[%emt 0:06:43]} Ne7 {[%emt 0:01:45]} 9. Nbd2 {[%emt 0:06:00]} Bg7 {
[%emt 0:04:52]} 10. Re1 {[%emt 0:04:07]} O-O {[%emt 0:02:21]} 11. Nf1 {[%emt 0:
00:00]} Ng6 {[%emt 0:10:23]} 12. Ng3 {[%emt 0:04:00]} Nf4 {[%emt 0:08:18]} 13.
h3 {[%emt 0:08:28]} Bd7 {[%emt 0:03:18]} 14. Nf5 {[%emt 0:03:17]} Bxf5 {
[%emt 0:10:23]} 15. exf5 {[%emt 0:00:03]} Qd7 {[%emt 0:00:09]} 16. Bxf4 {
[%emt 0:02:28]} gxf4 {[%emt 0:00:27]} 17. Nh4 {[%emt 0:01:55]} Kh8 {[%emt 0:00:
00]} 18. Be2 {[%emt 0:06:28]} Rg8 {[%emt 0:02:27]} 19. Bg4 {[%emt 0:03:02]} Qb5
{[%emt 0:02:43]} 20. Qe2 {[%emt 0:05:45]} Qxe2 {[%emt 0:02:51]} 21. Bxe2 {
[%emt 0:01:11]} e4 {[%emt 0:07:51]} 22. Bc4 {[%emt 0:03:10]} Rae8 {[%emt 0:00:
00]} 23. g3 {[%emt 0:04:37]} f3 {[%emt 0:02:07]} 24. Rad1 {[%emt 0:02:06]} h5 {
[%emt 0:02:38]} 25. Kh2 {[%emt 0:02:58]} Bh6 {[%emt 0:01:10]} 26. Rg1 {[%emt 0:
00:00]} Bg5 {[%emt 0:01:51]} 27. Kh1 {[%emt 0:02:06]} Re5 {[%emt 0:02:01]} 28.
Kh2 {[%emt 0:00:28]} Kh7 {[%emt 0:02:08]} 29. Kh1 {[%emt 0:01:19]} Bxh4 {
[%emt 0:05:31]} 30. gxh4 {[%emt 0:00:02]} Rxg1+ {[%emt 0:00:40]} 31. Kxg1 {
[%emt 0:00:13]} Rxf5 {[%emt 0:00:14]} 32. Kh2 {[%emt 0:00:42]} Re5 {[%emt 0:00:
00]} 33. Kg3 {[%emt 0:02:27]} Nd7 {[%emt 0:00:10]} 34. Kf4 {[%emt 0:01:13]} Nf8
{[%emt 0:00:41]} 35. Ke3 {[%emt 0:02:10]} Ng6 {[%emt 0:00:40]} 36. Rd4 {
[%emt 0:00:18]} f5 {[%emt 0:00:19]} 37. Rd1 {[%emt 0:01:23]} f4+ {[%emt 0:00:
00]} 38. Kd4 {[%emt 0:00:16]} Nxh4 {[%emt 0:00:24]} 0-1

[Event "44th Chess Olympiad Women 2022"]
[Site "Chennai"]
[Date "2022.07.29"]
[Round "1.5"]
[White "Milliet, Sophie"]
[Black "Jose de Ribbegren, Kenia"]
[Result "1-0"]
[WhiteElo "2396"]
[BlackElo "1787"]
[Annotator "ChessBase"]
[PlyCount "51"]
[EventDate "2022.??.??"]
[TimeControl "60"]

1. e4 {[%emt 0:00:04]} e6 {[%emt 0:00:10]} 2. d4 {[%emt 0:00:09]} d5 {[%emt 0:
00:00]} 3. e5 {[%emt 0:00:24]} c5 {[%emt 0:00:10]} 4. c3 {[%emt 0:00:04]} Nc6 {
[%emt 0:00:29]} 5. Nf3 {[%emt 0:00:04]} Qb6 {[%emt 0:00:53]} 6. Bd3 {[%emt 0:
00:00]} Bd7 {[%emt 0:03:16]} 7. dxc5 {[%emt 0:05:27]} Bxc5 {[%emt 0:01:14]} 8.
O-O {[%emt 0:00:04]} a5 {[%emt 0:06:13]} 9. Nbd2 {[%emt 0:00:50]} a4 {[%emt 0:
00:00]} 10. b4 {[%emt 0:05:49]} Be7 {[%emt 0:07:47]} 11. b5 {[%emt 0:06:31]}
Nb8 {[%emt 0:14:08]} 12. c4 {[%emt 0:04:03]} Bc5 {[%emt 0:04:37]} 13. Rb1 {
[%emt 0:10:21]} Ne7 {[%emt 0:03:07]} 14. h4 {[%emt 0:10:59]} Ng6 {[%emt 0:00:
00]} 15. g3 {[%emt 0:00:16]} Qc7 {[%emt 0:04:20]} 16. Qe2 {[%emt 0:02:13]} b6 {
[%emt 0:01:27]} 17. h5 {[%emt 0:08:11]} Ne7 {[%emt 0:00:25]} 18. Bb2 {[%emt 0:
00:00]} Bc8 {[%emt 0:05:33]} 19. cxd5 {[%emt 0:15:38]} exd5 {[%emt 0:00:33]}
20. Nd4 {[%emt 0:00:37]} Qd7 {[%emt 0:10:34]} 21. e6 {[%emt 0:05:35]} fxe6 {
[%emt 0:00:42]} 22. h6 {[%emt 0:00:09]} O-O {[%emt 0:03:21]} 23. hxg7 {[%emt 0:
00:00]} Rf7 {[%emt 0:00:30]} 24. Bxh7+ {[%emt 0:06:38]} Kxg7 {[%emt 0:04:22]}
25. Nxe6+ {[%emt 0:06:49]} Kh6 {[%emt 0:00:20]} 26. Qg4 {[%emt 0:01:27]} 1-0

[Event "44th Chess Olympiad Women 2022"]
[Site "Chennai"]
[Date "2022.07.29"]
[Round "1.5"]
[White "Navrotescu, Andreea"]
[Black "Lebel-Arias, Julia"]
[Result "1-0"]
[WhiteElo "2373"]
[BlackElo "1660"]
[Annotator "TA"]
[PlyCount "73"]
[EventDate "2022.??.??"]
[TimeControl "60"]

{[%evp 9,73,65,81,38,78,85,118,79,94,79,101,65,90,93,118,116,139,141,135,122,
168,168,168,168,168,168,180,186,178,134,175,149,179,164,165,174,168,173,239,
220,245,248,314,256,306,305,397,400,383,358,465,457,522,507,1383,1347,1289,
1284,29980,29981,6133,1883,1883,852,1816,1743]} 1. c4 {[%emt 0:00:04]} g6 {
[%emt 0:00:08]} 2. d4 {[%emt 0:00:10]} Bg7 {[%emt 0:00:08]} 3. e4 {[%emt 0:00:
00]} c5 {[%emt 0:00:57]} 4. d5 {[%emt 0:00:44]} d6 {[%emt 0:00:15]} 5. Nc3 {
[%emt 0:00:37]} Nh6 {[%emt 0:01:37]} 6. f3 {[%emt 0:07:40] A43: Schmid Benoni.}
Nd7 {[%emt 0:01:38]} 7. Be3 {[%emt 0:00:28]} f6 {[%emt 0:00:38] [#]} 8. h4 $146
{[%emt 0:00:40][%cal Yh2h4,Yh4h5] White is better.} ({Predecessor:} 8. Qd2 Nf7
9. Bd3 Nde5 10. b3 Nxd3+ 11. Qxd3 O-O 12. Nge2 f5 13. O-O fxe4 14. fxe4 {
0-1 (60) Zanner,M (1394)-Bahr,A (1646) Bremen 2019}) 8... Nf7 {[%emt 0:00:18]}
9. Qd2 {[%emt 0:03:09] White is more active.} a6 {[%emt 0:03:22]} 10. h5 {
[%emt 0:02:38]} g5 {[%emt 0:00:56]} 11. Nge2 {[%emt 0:01:02]} Nde5 {[%emt 0:00:
00]} 12. Ng3 $1 {[%emt 0:01:35]} Bh6 {[%emt 0:00:10]} 13. Be2 {[%emt 0:02:37]}
Bd7 {[%emt 0:00:22]} 14. Nf5 {[%emt 0:07:42]} Bxf5 {[%emt 0:00:28]} (14... Bf8
$16) 15. exf5 $18 {[%emt 0:00:03]} Qd7 {[%emt 0:03:31] [#]} 16. Qc2 {[%emt 0:
00:00]} b6 {[%emt 0:04:13]} 17. g3 {[%emt 0:09:05]} Qc8 {[%emt 0:04:56]} 18. f4
{[%emt 0:01:37]} Nd7 {[%emt 0:02:00]} 19. Nd1 {[%emt 0:07:06][%cal Yc3d1,Yd1f2,
Yf2g4]} Rb8 {[%emt 0:11:58]} 20. a4 {[%emt 0:01:00]} O-O {[%emt 0:00:00]} 21.
Nf2 {[%emt 0:00:41]} gxf4 {[%emt 0:00:13]} 22. gxf4 {[%emt 0:00:15]} Kh8 {
[%emt 0:00:08]} 23. Qe4 {[%emt 0:02:56]} Qe8 {[%emt 0:00:39]} (23... Rg8 {
keeps fighting.} 24. Kd2 (24. Qxe7 Qe8 $16) 24... Qc7) 24. Bd2 {[%emt 0:01:26]}
Rg8 {[%emt 0:00:23]} 25. Ng4 {[%emt 0:00:57]} Nf8 {[%emt 0:03:08]} 26. Bc3 {
[%emt 0:01:12]} Qd8 {[%emt 0:00:09]} 27. Rg1 {[%emt 0:02:06]} Rb7 {[%emt 0:00:
00]} 28. O-O-O {[%emt 0:00:35]} Nd7 {[%emt 0:02:55]} 29. Kb1 {[%emt 0:01:34]}
Nf8 {[%emt 0:00:41]} 30. Rg2 {[%emt 0:00:16] And now Rdg1 would win.} Nd7 {
[%emt 0:03:03]} 31. Rdg1 {[%emt 0:00:53] Threatens to win with Qe6.} Bg7 {
[%emt 0:09:55]} (31... Rb8 $142 32. Nxf6 exf6 33. Rxg8+ Qxg8 34. Rxg8+ Kxg8)
32. h6 {[%emt 0:01:32]} Bxh6 {[%emt 0:01:56]} 33. Qe6 {[%emt 0:01:25]} Rxg4 {
[%emt 0:03:10]} 34. Rxg4 {[%emt 0:00:24]} Qf8 {[%emt 0:00:18] [#]} 35. Rg8+ {
[%emt 0:00:35]} (35. Qxe7 $142 $3 Ng5 36. Qxf8+ Bxf8 37. fxg5) 35... Qxg8 {
[%emt 0:00:15]} 36. Rxg8+ {[%emt 0:00:02]} Kxg8 {[%emt 0:00:31]} 37. Bh5 {
[%emt 0:00:02] Weighted Error Value: White=0.14 (very precise) / Black=0.55}
1-0